fUSD/lending_fUSD_20250529
["ID","MTS","AMOUNT","RATE_DAILY","PERIOD"]
[362832727,1748477454491,-420.0,0.0003315,7]
[362832728,1748477454500,-420.0,0.0003315,7]
[362832729,1748477454510,-3410.27,0.0003315,7]
[362832730,1748477454520,-420.0,0.0003315,7]
[362832731,1748477454530,-420.0,0.0003315,7]
[362832732,1748477454540,-774.93,0.0003315,7]
[362832733,1748477454549,-420.0,0.0003315,7]
[362832734,1748477454560,-1386.88,0.0003315,7]
[362832735,1748477454570,-420.0,0.0003315,7]
[362832736,1748477454579,-152.801019,0.0003315,7]
[362832737,1748477454588,-2421.12,0.0003315,7]
[362832738,1748477454598,-597.91,0.0003315,7]
[362832739,1748477454607,-674.97,0.0003315,7]
[362832740,1748477454616,-420.0,0.0003315,7]
[362832741,1748477454625,-420.0,0.0003315,7]
[362832742,1748477454635,-420.0,0.0003315,7]
[362832743,1748477454644,-2385.3,0.0003315,7]
[362832744,1748477454653,-420.0,0.0003315,7]
[362832745,1748477454663,-1764.21,0.0003315,7]
[362832746,1748477454672,-420.0,0.0003315,7]
[362832747,1748477454681,-6420.71,0.0003315,7]
[362832748,1748477454690,-420.0,0.0003315,7]
[362832749,1748477454699,-420.0,0.0003315,7]
[362832750,1748477454708,-420.0,0.0003315,7]
[362832751,1748477454718,-512.07,0.0003315,7]
[362832752,1748477454728,-420.0,0.0003315,7]
[362832753,1748477454737,-420.0,0.0003315,7]
[362832754,1748477454747,-420.0,0.0003315,7]
[362832755,1748477454756,-1314.84,0.0003315,7]
[362832756,1748477454765,-420.0,0.0003315,7]
[362832757,1748477454775,-420.0,0.0003315,7]
[362832758,1748477454784,-420.0,0.0003315,7]
[362832759,1748477454794,-420.0,0.0003315,7]
[362832760,1748477454803,-420.0,0.0003315,7]
[362832761,1748477454813,-420.0,0.0003315,7]
[362832762,1748477454823,-151.0,0.0003315,7]
[362832763,1748477454832,-151.0,0.0003315,7]
[362832764,1748477454841,-420.0,0.0003315,7]
[362832765,1748477454850,-420.0,0.0003315,7]
[362832766,1748477454860,-420.0,0.0003315,7]
[362832767,1748477454869,-420.0,0.0003315,7]
[362832768,1748477454878,-453.77,0.0003315,7]
[362832769,1748477454888,-1277.74,0.0003315,7]
[362832770,1748477454897,-488.25,0.0003315,7]
[362832771,1748477454907,-564.30478704,0.0003315,7]
[362832772,1748477454916,-420.0,0.0003315,7]
[362832773,1748477454926,-621.44,0.0003315,7]
[362832774,1748477454936,-651.97,0.0003315,7]
[362832775,1748477454946,-420.0,0.0003315,7]
[362832776,1748477454955,-420.0,0.0003315,7]
[362832777,1748477454965,-420.0,0.0003315,7]
[362832778,1748477454974,-574.02,0.0003315,7]
[362832779,1748477454985,-987.07,0.0003315,7]
[362832780,1748477454996,-420.0,0.0003315,7]
[362832781,1748477455005,-420.0,0.0003315,7]
[362832782,1748477455015,-420.0,0.0003315,7]
[362832783,1748477455153,-420.0,0.0003315,7]
[362832784,1748477455163,-1003.43,0.0003315,7]
[362832785,1748477455172,-656.25,0.0003315,7]
[362832786,1748477455182,-2051.92,0.0003315,7]
[362832787,1748477455192,-1207.47,0.0003315,7]
[362832788,1748477455201,-420.0,0.0003315,7]
[362832789,1748477455210,-420.0,0.0003315,7]
[362832790,1748477455220,-420.0,0.0003315,7]
[362832791,1748477455229,-420.0,0.0003315,7]
[362832792,1748477455239,-1738.59,0.0003315,7]
[362832793,1748477455248,-420.0,0.0003315,7]
[362832794,1748477455258,-1377.3,0.0003315,7]
[362832795,1748477455268,-420.0,0.0003315,7]
[362832796,1748477455278,-626.41,0.0003315,7]
[362832797,1748477455287,-420.0,0.0003315,7]
[362832798,1748477455297,-420.0,0.0003315,7]
[362832799,1748477455307,-752.1,0.0003315,7]
[362832800,1748477455316,-151.0,0.0003315,7]
[362832801,1748477455326,-435.47,0.0003315,7]
[362832802,1748477455336,-151.0,0.0003315,7]
[362832803,1748477455345,-420.0,0.0003315,7]
[362832804,1748477455355,-420.0,0.0003315,7]
[362832805,1748477455365,-5405.46,0.0003315,7]
[362832806,1748477455374,-420.0,0.0003315,7]
[362832807,1748477455383,-1285.95,0.0003315,7]
[362832808,1748477455393,-715.910387,0.0003315,7]
[362832809,1748477455403,-715.910387,0.0003315,7]
[362832810,1748477455411,-420.0,0.0003315,7]
[362832811,1748477455421,-420.0,0.0003315,7]
[362832812,1748477455430,-420.0,0.0003315,7]
[362832813,1748477455440,-420.0,0.0003315,7]
[362832814,1748477455450,-420.0,0.0003315,7]
[362832815,1748477455460,-715.910387,0.0003315,7]
[362832816,1748477455470,-869.91,0.0003315,7]
[362832817,1748477455480,-715.910387,0.0003315,7]
[362832818,1748477455490,-1304.7,0.0003315,7]
[362832819,1748477455499,-452.89,0.0003315,7]
[362832820,1748477455509,-420.0,0.0003315,7]
[362832821,1748477455518,-420.0,0.0003315,7]
[362832822,1748477455527,-420.0,0.0003315,7]
[362832823,1748477455537,-420.0,0.0003315,7]
[362832824,1748477455546,-420.0,0.0003315,7]
[362832825,1748477455557,-930.65,0.0003315,7]
[362832826,1748477455566,-663.22,0.0003315,7]
[362832827,1748477455575,-420.0,0.0003315,7]
[362832828,1748477455585,-4909.1,0.0003315,7]
[362832829,1748477455595,-420.0,0.0003315,7]
[362832830,1748477455604,-420.0,0.0003315,7]
[362832831,1748477455614,-420.0,0.0003315,7]
[362832832,1748477455623,-154.80638429,0.0003315,7]
[362832833,1748477455633,-667.01,0.0003315,7]
[362832834,1748477455642,-420.0,0.0003315,7]
[362832835,1748477455652,-420.0,0.0003315,7]
[362832836,1748477455661,-420.0,0.0003315,7]
[362832837,1748477455671,-420.0,0.0003315,7]
[362832838,1748477455681,-420.0,0.0003315,7]
[362832839,1748477455692,-420.0,0.0003315,7]
[362832840,1748477455702,-4538.99,0.0003315,7]
[362832841,1748477455712,-420.0,0.0003315,7]
[362832842,1748477455721,-428.17,0.0003315,7]
[362832843,1748477455730,-528.74,0.0003315,7]
[362832844,1748477455740,-420.0,0.0003315,7]
[362832845,1748477455749,-420.0,0.0003315,7]
[362832846,1748477455759,-2382.26,0.0003315,7]
[362832847,1748477455769,-420.0,0.0003315,7]
[362832848,1748477455778,-420.0,0.0003315,7]
[362832849,1748477455788,-452.91146988,0.0003315,7]
[362832850,1748477455798,-420.0,0.0003315,7]
[362832851,1748477455807,-420.0,0.0003315,7]
[362832852,1748477455816,-420.0,0.0003315,7]
[362832853,1748477455825,-420.0,0.0003315,7]
[362832854,1748477455835,-1912.52,0.0003315,7]
[362832855,1748477455844,-3997.07,0.0003315,7]
[362832856,1748477455853,-420.0,0.0003315,7]
[362832857,1748477455862,-1000.0,0.0003315,7]
[362832858,1748477455871,-420.0,0.0003315,2]
[362832859,1748477455880,-420.0,0.0003315,7]
[362832860,1748477455890,-420.0,0.0003315,7]
[362832861,1748477455899,-420.0,0.0003315,7]
[362832862,1748477455909,-420.0,0.0003315,7]
[362832863,1748477455919,-420.0,0.0003315,7]
[362832864,1748477455930,-420.0,0.0003315,7]
[362832865,1748477455940,-575.87,0.0003315,7]
[362832866,1748477455949,-420.0,0.0003315,7]
[362832867,1748477455958,-2715.537293,0.0003315,7]
[362832868,1748477455967,-420.0,0.0003315,7]
[362832869,1748477455977,-22724.32,0.0003315,7]
[362832870,1748477455989,-420.0,0.0003315,7]
[362832871,1748477455999,-420.0,0.0003315,7]
[362832872,1748477456008,-420.0,0.0003315,7]
[362832873,1748477456017,-420.0,0.0003315,7]
[362832874,1748477456027,-420.0,0.0003315,7]
[362832875,1748477456037,-420.0,0.0003315,7]
[362832876,1748477456046,-420.0,0.0003315,7]
[362832877,1748477456057,-420.0,0.0003315,7]
[362832878,1748477456068,-200.0,0.00033151,2]
[362832879,1748477456078,-535.45848592,0.00033173,5]
[362832880,1748477456087,-500.0,0.00033173,5]
[362832881,1748477456096,-500.0,0.00033173,5]
[362832882,1748477456106,-500.0,0.00033173,5]
[362832883,1748477456115,-500.0,0.00033173,5]
[362832884,1748477456124,-500.0,0.00033173,5]
[362832885,1748477456133,-150.0,0.00033173,2]
[362832886,1748477456142,-1000.0,0.0003319,2]
[362832887,1748477456151,-150.0,0.00033195,2]
[362832888,1748477456161,-150.0,0.00033204,2]
[362832889,1748477456171,-163.01,0.00033205,2]
[362832890,1748477456180,-264.33,0.00033205,2]
[362832891,1748477456191,-163.01,0.00033205,2]
[362832892,1748477456201,-163.01,0.00033205,2]
[362832893,1748477456211,-163.01,0.00033205,2]
[362832894,1748477456220,-163.01,0.00033205,2]
[362832895,1748477456229,-21166.9209253,0.00033206,2]
[362832896,1748477456238,-150.0,0.00033216,2]
[362832897,1748477456247,-150.0,0.00033229,2]
[362832898,1748477456257,-150.0,0.00033245,2]
[362832899,1748477456267,-150.0,0.00033257,2]
[362832900,1748477456276,-500.0,0.00033275,7]
[362832901,1748477456285,-200.0,0.00033281,10]
[362832902,1748477456295,-151.0,0.00033295,7]
[362832903,1748477456304,-151.0,0.00033295,7]
[362832904,1748477456314,-151.0,0.00033295,7]
[362832905,1748477456323,-151.0,0.00033295,7]
[362832906,1748477456332,-153.0,0.00033295,7]
[362832907,1748477456342,-153.0,0.00033295,7]
[362832908,1748477456351,-151.0,0.00033295,7]
[362832909,1748477456360,-164.40126043,0.00033295,7]
[362832910,1748477456370,-232.52569135,0.00033295,7]
[362832911,1748477456379,-1000.0,0.000333,7]
[362832912,1748477456390,-150.0,0.00033313,2]
[362832913,1748477456400,-1183.18470388,0.00033322,2]
[362832914,1748477456409,-3788.93707918,0.00033328,2]
[362832915,1748477456419,-495.74102644,0.00033328,2]
[362832916,1748477456427,-6325.23944714,0.00033328,2]
[362832917,1748477456437,-150.0,0.00033346,2]
[362832918,1748477456448,-150.0,0.00033381,2]
[362832919,1748477456457,-210.34,0.000334,2]
[362832920,1748477456466,-4000.0,0.00033401,2]
[362832921,1748477456475,-151.0,0.00033402,7]
[362832922,1748477456485,-203.391733,0.00033402,7]
[362832923,1748477456494,-151.0,0.00033402,7]
[362832924,1748477456508,-155.178278,0.00033402,7]
[362832925,1748477456517,-155.178278,0.00033402,7]
[362832926,1748477456527,-151.0,0.00033402,7]
[362832927,1748477456538,-151.0,0.00033402,7]
[362832928,1748477456548,-151.0,0.00033402,7]
[362832929,1748477456558,-153.403058,0.00033404,7]
[362832930,1748477456567,-861.356934,0.00033404,7]
[362832931,1748477456577,-151.0,0.00033404,7]
[362832932,1748477456587,-861.356934,0.00033404,7]
[362832933,1748477456596,-151.0,0.00033404,7]
[362832934,1748477456606,-151.0,0.00033404,7]
[362832935,1748477456616,-151.0,0.00033404,7]
[362832936,1748477456626,-500.0,0.00033404,7]
[362832937,1748477456635,-150.0,0.00033405,2]
[362832938,1748477456647,-21166.9209253,0.00033409,2]
[362832939,1748477456656,-21166.9209253,0.00033411,2]
[362832940,1748477456666,-14518.0962295,0.00033413,2]
[362832941,1748477456675,-906.08872,0.00033413,7]
[362832942,1748477456684,-6199.0610133,0.00033413,2]
[362832943,1748477456696,-153087.9450223,0.00033413,2]
[362832944,1748477456706,-290.852198,0.00033414,7]
[362832945,1748477456715,-151.0,0.00033414,7]
[362832946,1748477456724,-151.0,0.00033414,7]
[362832947,1748477456734,-152.08178,0.00033414,7]
[362832948,1748477456743,-543.630025,0.00033414,7]
[362832949,1748477456753,-543.630025,0.00033414,7]
[362832950,1748477456763,-151.0,0.00033414,7]
[362832951,1748477456772,-205.723099,0.00033414,7]
[362832952,1748477456783,-205.723099,0.00033414,7]
[362832953,1748477456793,-151.0,0.00033414,7]
[362832954,1748477456802,-151.0,0.00033414,7]
[362832955,1748477456811,-151.0,0.00033414,7]
[362832956,1748477456821,-151.0,0.00033414,7]
[362832957,1748477456831,-289.23293,0.00033414,7]
[362832958,1748477456841,-289.23293,0.00033414,7]
[362832959,1748477456850,-1210.505215,0.00033414,7]
[362832960,1748477456860,-1210.505215,0.00033414,7]
[362832961,1748477456870,-165.808477,0.00033414,7]
[362832962,1748477456879,-165.808477,0.00033414,7]
[362832963,1748477456889,-148168.446477,0.00033414,2]
[362832964,1748477456898,-500.0,0.00033418,7]
[362832965,1748477456908,-151.0,0.00033419,7]
[362832966,1748477456918,-151.0,0.00033419,7]
[362832967,1748477456927,-151.0,0.00033419,7]
[362832968,1748477456937,-151.0,0.00033419,7]
[362832969,1748477456948,-170.094853,0.00033419,7]
[362832970,1748477456958,-170.094853,0.00033419,7]
[362832971,1748477456967,-250.80527,0.00033419,7]
[362832972,1748477456976,-221.241872,0.00033419,7]
[362832973,1748477456988,-543.630025,0.00033419,7]
[362832974,1748477456999,-543.630025,0.00033419,7]
[362832975,1748477457009,-151.0,0.00033419,7]
[362832976,1748477457019,-205.723099,0.00033419,7]
[362832977,1748477457028,-205.723099,0.00033419,7]
[362832978,1748477457038,-151.0,0.00033419,7]
[362832979,1748477457048,-151.0,0.00033419,7]
[362832980,1748477457217,-209.950865,0.00033419,7]
[362832981,1748477457227,-151.0,0.00033419,7]
[362832982,1748477457237,-209.950865,0.00033419,7]
[362832983,1748477457247,-151.0,0.00033419,7]
[362832984,1748477457256,-151.0,0.00033419,7]
[362832985,1748477457266,-279.742071,0.00033419,7]
[362832986,1748477457275,-289.23293,0.00033419,7]
[362832987,1748477457285,-289.23293,0.00033419,7]
[362832988,1748477457293,-1210.505215,0.00033419,7]
[362832989,1748477457303,-1210.505215,0.00033419,7]
[362832990,1748477457313,-165.808477,0.00033419,7]
[362832991,1748477457323,-165.808477,0.00033419,7]
[362832992,1748477457332,-1000.0,0.00033421,5]
[362832993,1748477457342,-1000.0,0.00033421,2]
[362832994,1748477457351,-151.0,0.00033421,7]
[362832995,1748477457361,-151.0,0.00033421,7]
[362832996,1748477457370,-155.178278,0.00033421,7]
[362832997,1748477457379,-155.178278,0.00033421,7]
[362832998,1748477457389,-151.0,0.00033421,7]
[362832999,1748477457399,-151.0,0.00033421,7]
[362833000,1748477457409,-151.0,0.00033421,3]
[362833001,1748477457418,-207.4,0.00033421,3]
[362833002,1748477457428,-156.587,0.00033421,3]
[362833003,1748477457438,-215.0738,0.00033421,3]
[362833004,1748477457449,-162.380719,0.00033421,3]
[362833005,1748477457458,-168.3888056,0.00033421,3]
[362833006,1748477457469,-223.0315306,0.00033421,3]
[362833007,1748477457479,-174.61919141,0.00033421,3]
[362833008,1748477457488,-231.28369723,0.00033421,3]
[362833009,1748477457498,-181.08010149,0.00033421,3]
[362833010,1748477457507,-239.84119403,0.00033421,3]
[362833011,1748477457516,-248.71531821,0.00033421,3]
[362833012,1748477457525,-187.78006525,0.00033421,3]
[362833013,1748477457535,-257.91778498,0.00033421,3]
[362833014,1748477457544,-194.72792766,0.00033421,3]
[362833015,1748477457555,-1115.157653,0.00033421,3]
[362833016,1748477457564,-267.46074303,0.00033421,3]
[362833017,1748477457576,-201.93286099,0.00033421,3]
[362833018,1748477457586,-1156.41848616,0.00033421,3]
[362833019,1748477457596,-277.35679052,0.00033421,3]
[362833020,1748477457606,-1199.20597015,0.00033421,3]
[362833021,1748477457615,-209.40437684,0.00033421,3]
[362833022,1748477457625,-1243.57659104,0.00033421,3]
[362833023,1748477457634,-287.61899177,0.00033421,3]
[362833024,1748477457644,-217.15233878,0.00033421,3]
[362833025,1748477457653,-1289.58892491,0.00033421,3]
[362833026,1748477457662,-225.18697532,0.00033421,3]
[362833027,1748477457672,-298.26089446,0.00033421,3]
[362833028,1748477457684,-1337.30371513,0.00033421,3]
[362833029,1748477457694,-233.51889341,0.00033421,3]
[362833030,1748477457704,-309.29654756,0.00033421,3]
[362833031,1748477457713,-242.15909246,0.00033421,3]
[362833032,1748477457723,-320.74051982,0.00033421,3]
[362833033,1748477457733,-668.65185757,0.00033421,3]
[362833034,1748477457742,-1386.78395259,0.00033421,3]
[362833035,1748477457752,-251.11897888,0.00033421,3]
[362833036,1748477457761,-332.60791905,0.00033421,3]
[362833037,1748477457771,-693.3919763,0.00033421,3]
[362833038,1748477457780,-1438.09495884,0.00033421,3]
[362833039,1748477457789,-260.4103811,0.00033421,3]
[362833040,1748477457799,-344.91441206,0.00033421,3]
[362833041,1748477457808,-719.04747942,0.00033421,3]
[362833042,1748477457817,-357.6762453,0.00033421,3]
[362833043,1748477457827,-270.0455652,0.00033421,3]
[362833044,1748477457836,-745.65223616,0.00033421,3]
[362833045,1748477457846,-1491.30447232,0.00033421,3]
[362833046,1748477457855,-280.03725112,0.00033421,3]
[362833047,1748477457866,-370.91026638,0.00033421,3]
[362833048,1748477457876,-773.2413689,0.00033421,3]
[362833049,1748477457885,-1546.48273779,0.00033421,3]
[362833050,1748477457895,-384.63394623,0.00033421,3]
[362833051,1748477457904,-290.39862941,0.00033421,3]
[362833052,1748477457913,-801.85129955,0.00033421,3]
[362833053,1748477457922,-1603.70259909,0.00033421,3]
[362833054,1748477457933,-398.86540225,0.00033421,3]
[362833055,1748477457944,-301.1433787,0.00033421,3]
[362833056,1748477457953,-1663.03959526,0.00033421,3]
[362833057,1748477457963,-831.51979763,0.00033421,3]
[362833058,1748477457972,-1724.57206028,0.00033421,3]
[362833059,1748477457982,-862.28603014,0.00033421,3]
[362833060,1748477457995,-894.19061326,0.00033421,3]
[362833061,1748477458004,-443.70791371,0.00033421,3]
[362833062,1748477458015,-500.0,0.00033421,7]
[362833063,1748477458024,-154.17,0.00033421,2]
[362833064,1748477458034,-204.32208512,0.00033422,28]
[362833065,1748477458044,-750.772526,0.00033422,7]
[362833066,1748477458053,-750.772526,0.00033422,7]
[362833067,1748477458063,-417.665166,0.00033422,7]
[362833068,1748477458073,-417.665166,0.00033422,7]
[362833069,1748477458082,-440.129954,0.00033422,7]
[362833070,1748477458092,-440.129954,0.00033422,7]
[362833071,1748477458101,-200.0,0.00033422,2]
[362833072,1748477458110,-290.852198,0.00033422,7]
[362833073,1748477458120,-200.0,0.00033422,2]
[362833074,1748477458130,-300.0,0.00033422,7]
[362833075,1748477458142,-1000.0,0.00033423,2]
[362833076,1748477458152,-154.125503,0.00033423,7]
[362833077,1748477458161,-151.0,0.00033423,7]
[362833078,1748477458171,-151.0,0.00033423,7]
[362833079,1748477458181,-155.707883,0.00033423,7]
[362833080,1748477458190,-151.0,0.00033423,7]
[362833081,1748477458201,-500.0,0.00033423,7]
[362833082,1748477458211,-500.0,0.00033423,7]
[362833083,1748477458221,-500.0,0.00033423,7]
[362833084,1748477458230,-500.0,0.00033423,7]
[362833085,1748477458239,-500.0,0.00033423,7]
[362833086,1748477458249,-500.0,0.00033423,7]
[362833087,1748477458259,-174.67723617,0.00033424,3]
[362833088,1748477458267,-237925.33560224,0.00033424,3]
[362833089,1748477621067,-1077.0,0.00023366,2]
[362833090,1748477672210,-1077.0,0.00024596,2]
[362833093,1748477735198,-1077.0,0.0002589,2]
[362833094,1748477746019,-500.0,0.00026704,2]
[362833095,1748477746303,-500.0,0.0002682,2]
[362833096,1748477746323,-77.0,0.00027242,2]
[362833097,1748477757866,-423.0,0.00027242,2]
[362833098,1748477790618,256.0,0.00027253,2]
[362833099,1748477933559,10000.0,0.00023,30]
[362833101,1748478055732,155.25,0.00013699,2]
[362833104,1748478364105,4844.75,0.00018,2]
[362833105,1748478364131,5170.32411984,0.00018,2]
[362833106,1748478364155,14796.461875,0.00018,2]
[362833107,1748478364177,14796.461875,0.00018,2]
[362833108,1748478364200,14796.461875,0.00018,2]
[362833109,1748478364222,14796.461875,0.00018,2]
[362833110,1748478364244,14796.461875,0.00018,2]
[362833111,1748478364267,14796.461875,0.00018,2]
[362833112,1748478364690,14796.461875,0.00018,2]
[362833113,1748478364714,14796.461875,0.00018,2]
[362833114,1748478364736,14796.461875,0.00018,2]
[362833115,1748478364760,14796.461875,0.00018,2]
[362833116,1748478364783,14796.461875,0.00018,2]
[362833117,1748478364806,14796.461875,0.00018,2]
[362833118,1748478364828,14796.461875,0.00018,2]
[362833119,1748478364850,14796.461875,0.00018,2]
[362833120,1748478364872,14796.461875,0.00018,2]
[362833121,1748478364893,14796.461875,0.00018,2]
[362833122,1748478364914,14796.461875,0.00018,2]
[362833123,1748478364936,14796.461875,0.00018,2]
[362833124,1748478364957,14796.461875,0.00018,2]
[362833125,1748478364979,14796.461875,0.00018,2]
[362833126,1748478365002,8415.45838016,0.00018,2]
[362833130,1748478570294,-300.0,0.00019998,2]
[362833131,1748478570319,-500.0,0.00019999,2]
[362833132,1748478570343,-500.0,0.00019999,2]
[362833133,1748478570371,-639.95926548,0.00019999,2]
[362833134,1748478570395,-500.0,0.00019999,2]
[362833135,1748478570418,-624.65505846,0.00019999,2]
[362833136,1748478570444,-500.0,0.00019999,2]
[362833137,1748478570468,-500.0,0.00019999,2]
[362833138,1748478570491,-548.75782295,0.00019999,2]
[362833139,1748478570515,-302.1208877,0.0002,2]
[362833140,1748478570538,-291084.50696541,0.0002,2]
[362833154,1748478632100,-300.0,0.00019999,2]
[362833155,1748478632110,-220.72860188,0.00019999,2]
[362833156,1748478632307,-79.27139812,0.00019999,2]
[362833157,1748478632317,-486.40628433,0.00019999,2]
[362833161,1748478638179,-713.59371567,0.00019999,2]
[362833162,1748478638190,-380.30628433,0.0002,2]
[362833163,1748478638210,-650.31635821,0.0002,2]
[362833164,1748478638244,-1476.61709751,0.0002,2]
[362833165,1748478638297,-194442.21433594,0.0002,2]
[362833166,1748478638307,-500.0,0.00020533,2]
[362833167,1748478638317,-1000.0,0.00021081,2]
[362833168,1748478638327,-1500.0,0.00021629,2]
[362833169,1748478638337,-420.0,0.00021777,2]
[362833170,1748478638347,-1680.0,0.00021881,2]
[362833171,1748478638357,-555.9667051,0.000219,6]
[362833172,1748478638366,-1078.63,0.00021931,2]
[362833173,1748478638379,-250.0,0.00021999,2]
[362833174,1748478638389,-200.0,0.00021999,2]
[362833175,1748478638400,-652.96010311,0.00022177,2]
[362833176,1748478638411,-555.96670481,0.0002259,7]
[362833177,1748478638420,-198.0,0.0002292,2]
[362833178,1748478638430,-1000.0,0.00023224,7]
[362833179,1748478638440,-555.96670481,0.00023279,8]
[362833180,1748478638450,-526.35503197,0.00023444,2]
[362833181,1748478638462,-557.93876485,0.00023444,2]
[362833182,1748478638472,-500.0,0.00023444,2]
[362833183,1748478638481,-231.07803732,0.00023699,2]
[362833184,1748478638493,-587.0,0.00023712,2]
[362833185,1748478638503,-1000.0,0.00023732,2]
[362833186,1748478638513,-1000.0,0.00023732,2]
[362833187,1748478638523,-1000.0,0.00023732,2]
[362833188,1748478638533,-1000.0,0.00023732,2]
[362833189,1748478638543,-1000.0,0.00023732,2]
[362833190,1748478638552,-1000.0,0.00023732,2]
[362833191,1748478638562,-1000.0,0.00023732,2]
[362833193,1748478638572,-424.09608736,0.00023799,2]
[362833195,1748478638581,-1000.0,0.0002389,7]
[362833197,1748478638591,-1000.0,0.0002389,7]
[362833198,1748478638601,-1000.0,0.0002389,7]
[362833199,1748478638611,-1000.0,0.0002389,7]
[362833200,1748478638621,-1000.0,0.0002389,7]
[362833201,1748478638631,-1000.0,0.0002389,7]
[362833202,1748478638640,-1000.0,0.0002389,7]
[362833203,1748478638651,-162.1176628,0.00023899,2]
[362833204,1748478638661,-2351.0,0.00023941,2]
[362833205,1748478638670,-555.96670481,0.00023969,10]
[362833206,1748478638680,-800.86145054,0.00023992,2]
[362833207,1748478638690,-283.19531366,0.00023999,2]
[362833208,1748478638699,-500.0,0.00023999,2]
[362833209,1748478638709,-500.0,0.00023999,2]
[362833210,1748478638719,-500.0,0.00023999,2]
[362833211,1748478638729,-500.0,0.00023999,2]
[362833212,1748478638741,-202.11254008,0.00023999,2]
[362833213,1748478638751,-500.0,0.00023999,2]
[362833214,1748478638761,-500.0,0.00023999,2]
[362833215,1748478638770,-500.0,0.00023999,2]
[362833216,1748478638780,-500.0,0.00023999,2]
[362833217,1748478638789,-10000.0,0.00024,30]
[362833218,1748478638800,-5000.00897928,0.00024,5]
[362833219,1748478638811,-1078.63,0.00024195,2]
[362833220,1748478638820,-555.96670481,0.00024659,11]
[362833221,1748478638833,-93018.6015019,0.000248,2]
[362833222,1748478638842,-424.09608732,0.0002493,2]
[362833223,1748478638852,-300.0,0.00025,2]
[362833224,1748478638862,-300.0,0.0002525,2]
[362833225,1748478638872,-555.96670481,0.00025348,13]
[362833226,1748478638881,-300.0,0.000255,2]
[362833227,1748478638891,-231.07803732,0.00025661,2]
[362833228,1748478638901,-300.0,0.0002575,2]
[362833229,1748478638910,-823.0,0.0002582,2]
[362833230,1748478638920,-1448.65601026,0.00026,3]
[362833231,1748478638930,-300.0,0.00026,2]
[362833232,1748478638940,-555.96670481,0.00026038,14]
[362833233,1748478638950,-424.09608732,0.00026061,2]
[362833234,1748478638960,-3292.0,0.00026194,2]
[362833235,1748478638970,-508.74233529,0.0002625,4]
[362833236,1748478638981,-1078.63,0.00026459,2]
[362833237,1748478638991,-555.96670481,0.00026728,15]
[362833238,1748478639001,-162.1176628,0.00026899,2]
[362833239,1748478639011,-23254.6503755,0.0002699,2]
[362833240,1748478639021,-5094.516839,0.00027,14]
[362833241,1748478639030,-242.0,0.00027123,2]
[362833242,1748478639039,-242.0,0.00027123,2]
[362833243,1748478639048,-242.0,0.00027123,2]
[362833244,1748478639057,-242.0,0.00027123,2]
[362833245,1748478639067,-242.0,0.00027123,2]
[362833246,1748478639078,-242.0,0.00027123,2]
[362833247,1748478639088,-242.0,0.00027123,2]
[362833248,1748478639097,-242.0,0.00027123,2]
[362833249,1748478639106,-242.0,0.00027123,2]
[362833250,1748478639116,-242.0,0.00027123,2]
[362833251,1748478639125,-242.0,0.00027123,2]
[362833252,1748478639135,-242.0,0.00027123,2]
[362833253,1748478639145,-242.0,0.00027123,2]